fUSD/lending_fUSD_20260224
["ID","MTS","AMOUNT","RATE_DAILY","PERIOD"]
[406591391,1771961441136,-1040.9160401,0.00011494,2]
[406591392,1771961441145,-1040.9160401,0.00011494,2]
[406591393,1771961441155,-1040.9160401,0.00011494,2]
[406591394,1771961441164,-1040.9160401,0.00011494,2]
[406591395,1771961441173,-1040.9160401,0.00011494,2]
[406591396,1771961441182,-1040.9160401,0.00011494,2]
[406591397,1771961441191,-1040.9160401,0.00011494,2]
[406591398,1771961441200,-1040.9160401,0.00011494,2]
[406591399,1771961441209,-1040.9160401,0.00011494,2]
[406591400,1771961441218,-1040.9160401,0.00011494,2]
[406591401,1771961441227,-1040.9160401,0.00011494,2]
[406591402,1771961441235,-1033.73730879,0.00011494,2]
[406591403,1771961441245,-1033.73730879,0.00011494,2]
[406591404,1771961441254,-1033.73730879,0.00011494,2]
[406591405,1771961441263,-1033.73730879,0.00011494,2]
[406591406,1771961441271,-1033.73730879,0.00011494,2]
[406591407,1771961441280,-1033.73730879,0.00011494,2]
[406591408,1771961441289,-1033.73730879,0.00011494,2]
[406591409,1771961441299,-1033.73730879,0.00011494,2]
[406591410,1771961441308,-1033.73730879,0.00011494,2]
[406591411,1771961441317,-1033.73730879,0.00011494,2]
[406591412,1771961441326,-1033.73730879,0.00011494,2]
[406591413,1771961441335,-1033.73730879,0.00011494,2]
[406591414,1771961441347,-1033.73730879,0.00011494,2]
[406591415,1771961441355,-1033.73730879,0.00011494,2]
[406591416,1771961441364,-1033.73730879,0.00011494,2]
[406591417,1771961441373,-1033.73730879,0.00011494,2]
[406591418,1771961441383,-1033.73730879,0.00011494,2]
[406591419,1771961441392,-1033.73730879,0.00011494,2]
[406591420,1771961441401,-1033.73730879,0.00011494,2]
[406591421,1771961441410,-1033.73730879,0.00011494,2]
[406591422,1771961441419,-1033.73730879,0.00011494,2]
[406591423,1771961441428,-1033.73730879,0.00011494,2]
[406591424,1771961441437,-1033.73730879,0.00011494,2]
[406591425,1771961441446,-1033.73730879,0.00011494,2]
[406591426,1771961441455,-1033.73730879,0.00011494,2]
[406591427,1771961441464,-1033.73730879,0.00011494,2]
[406591428,1771961441473,-1033.73730879,0.00011494,2]
[406591429,1771961441482,-1033.73730879,0.00011494,2]
[406591430,1771961441490,-500.0,0.00011494,2]
[406591431,1771961441500,-500.0,0.00011494,2]
[406591432,1771961441509,-500.0,0.00011494,2]
[406591433,1771961441520,-640.69101159,0.00011494,2]
[406591434,1771961441529,-59483.73806377,0.00011495,2]
[406591435,1771961441543,-753.36926024,0.00011495,2]
[406591436,1771961441558,-857122.15071086,0.00011495,2]
[406591444,1771961443410,-4377.27067227,0.00011495,2]
[406591445,1771961443421,-736.00102635,0.00011495,2]
[406591446,1771961443464,-801.0,0.00011495,2]
[406591447,1771961443734,-1134.47,0.00011495,2]
[406591462,1771961446132,-284.51915441,0.00011495,2]
[406591463,1771961446143,-361.13923972,0.00011495,2]
[406591464,1771961446400,-6749.0,0.00011495,2]
[406591540,1771962575732,151.58,7.982e-05,2]
[406591561,1771962637532,-151.58,9.313e-05,2]
[406591562,1771962637542,-4638.81922894,0.00010169,2]
[406591589,1771962639966,-384.74002906,0.00010169,2]
[406591590,1771962639976,-255.23372133,0.00010221,2]
[406591655,1771963539002,-204.635,9.962e-05,2]
[406591656,1771963539098,-500.0,9.962e-05,2]
[406591718,1771963831566,-1147.785,9.962e-05,2]
[406591719,1771963831575,-250.0,9.964e-05,2]
[406591720,1771963831584,-2978.0709646,9.966e-05,2]
[406591721,1771963831595,-2182.8190354,9.966e-05,2]
[406591722,1771963831788,-1200.0,9.973e-05,2]
[406591723,1771963831798,-500.0,9.974e-05,2]
[406591724,1771963831810,-185.09,9.974e-05,2]
[406591725,1771963831819,-300.0,9.989e-05,2]
[406591726,1771963831828,-300.0,9.989e-05,2]
[406591727,1771963831838,-300.0,9.99e-05,2]
[406591728,1771963831847,-1500.0,9.991e-05,2]
[406591729,1771963831856,-7589.28018845,0.00010221,2]
[406591730,1771963831867,-3714.32609022,0.00010221,2]
[406591731,1771963831876,-150.0,0.00010274,2]
[406591732,1771963831886,-150.0,0.00010298,2]
[406591733,1771963831895,-999.99,0.00010299,2]
[406591734,1771963831904,-150.99,0.00010299,2]
[406591735,1771963831913,-9999.99,0.00010299,2]
[406591736,1771963831922,-9999.99,0.00010299,2]
[406591737,1771963831931,-610.81241278,0.000103,2]
[406591738,1771963831940,-500.0,0.000103,2]
[406591739,1771963831949,-500.0,0.000103,2]
[406591740,1771963831958,-500.0,0.000103,2]
[406591741,1771963831967,-973.37124608,0.000103,2]
[406591742,1771963831977,-500.0,0.000103,2]
[406591743,1771963831986,-500.0,0.000103,2]
[406591744,1771963831995,-500.0,0.000103,2]
[406591745,1771963832005,-500.0,0.000103,2]
[406591746,1771963832015,-500.0,0.000103,2]
[406591747,1771963832024,-500.0,0.000103,2]
[406591748,1771963832033,-500.0,0.000103,2]
[406591749,1771963832043,-500.0,0.000103,2]
[406591750,1771963832053,-500.0,0.000103,2]
[406591751,1771963832063,-500.0,0.000103,2]
[406591752,1771963832072,-500.0,0.000103,2]
[406591753,1771963832080,-500.0,0.000103,2]
[406591754,1771963832090,-500.0,0.000103,2]
[406591755,1771963832099,-823.91748752,0.000103,2]
[406591756,1771963832109,-9101.6,0.0001042,2]
[406591757,1771963832118,-500.0,0.00010427,2]
[406591758,1771963832127,-580.68,0.00010427,2]
[406591759,1771963832137,-6499.88890969,0.00010427,2]
[406591760,1771963832148,-18008.86109031,0.00010427,2]
[406591761,1771963832157,-4352.77,0.00010427,2]
[406591762,1771963832167,-3419.82,0.00010427,2]
[406591763,1771963832176,-200.0,0.00010437,2]
[406591764,1771963832189,-3987.91380909,0.00010447,2]
[406591765,1771963832198,-1000.0,0.00010447,2]
[406591766,1771963832207,-1000.0,0.00010474,2]
[406591767,1771963832216,-346.16362503,0.00010521,2]
[406591768,1771963832226,-185.09,0.00010528,2]
[406591769,1771963832235,-285.54575102,0.0001054,2]
[406591770,1771963832246,-513.639,0.0001054,2]
[406591771,1771963832257,-167.39380328,0.0001054,2]
[406591772,1771963832267,-151.0,0.00010541,2]
[406591773,1771963832275,-151.0,0.00010541,2]
[406591774,1771963832284,-151.0,0.00010541,2]
[406591775,1771963832294,-151.0,0.00010541,2]
[406591776,1771963832303,-151.0,0.00010541,2]
[406591777,1771963832313,-151.0,0.00010541,2]
[406591778,1771963832322,-151.0,0.00010541,2]
[406591779,1771963832331,-151.0,0.00010541,2]
[406591780,1771963832340,-151.0,0.00010541,2]
[406591781,1771963832349,-98.60619672,0.00010541,2]
[406591782,1771963832360,-52.39380328,0.00010541,2]
[406591783,1771963832369,-151.0,0.00010541,2]
[406591784,1771963832379,-151.0,0.00010541,2]
[406591785,1771963832387,-151.0,0.00010541,2]
[406591786,1771963832396,-151.0,0.00010541,2]
[406591787,1771963832405,-297.43581831,0.00010541,2]
[406591788,1771963832414,-151.0,0.00010541,2]
[406591789,1771963832423,-85.80344586,0.00010541,2]
[406591790,1771963832434,-65.19655414,0.00010541,2]
[406591791,1771963832443,-151.0,0.00010541,2]
[406591792,1771963832452,-151.0,0.00010541,2]
[406591793,1771963832461,-151.0,0.00010541,2]
[406591794,1771963832470,-151.0,0.00010541,2]
[406591795,1771963832479,-151.0,0.00010541,2]
[406591796,1771963832487,-151.0,0.00010541,2]
[406591797,1771963832497,-151.0,0.00010541,2]
[406591798,1771963832507,-151.0,0.00010541,2]
[406591799,1771963832516,-151.0,0.00010541,2]
[406591800,1771963832525,-151.0,0.00010541,2]
[406591801,1771963832534,-151.0,0.00010541,2]
[406591802,1771963832543,-151.0,0.00010541,2]
[406591803,1771963832553,-2898.6438,0.00010548,2]
[406591804,1771963832562,-13567.78094904,0.00010548,2]
[406591805,1771963832573,-570.12167865,0.00010548,2]
[406591806,1771963832586,-565.87098227,0.00010548,2]
[406591807,1771963832598,-278.2949,0.00010548,2]
[406591808,1771963832609,-574.6,0.00010548,2]
[406591809,1771963832620,-458.44747329,0.00010548,2]
[406591810,1771963832632,-689.16136204,0.00010548,2]
[406591811,1771963832643,-4734.15578863,0.00010548,2]
[406591812,1771963832655,-6404.00730642,0.00010548,2]
[406591813,1771963837608,-2465.20947077,0.00010548,2]
[406591814,1771963837620,-707.82344134,0.00010548,2]
[406591815,1771963837631,-701.74242901,0.00010548,2]
[406591816,1771963837662,-1000.000001,0.00010548,2]
[406591817,1771963837720,-2774.92401754,0.00010548,2]
[406591818,1771963837730,-52.8099824,0.00010573,2]
[406591878,1771963839924,-114.1039842,0.00010573,2]
[406591879,1771963839935,-150.45934762,0.00010643,2]
[406591880,1771963840203,-1.12065238,0.00010643,2]
[406591881,1771963840213,-321.88,0.00010799,2]
[406591882,1771963840223,-553.9512,0.00010862,2]
[406591883,1771963840233,-190.47193958,0.00010939,2]
[406591898,1771963842731,-59.52806042,0.00010939,2]
[406591899,1771963842741,-250.0,0.00010958,2]
[406591900,1771963842751,-166.66,0.00010959,2]
[406591901,1771963842763,-150.0,0.00010959,2]
[406591902,1771963842773,-1680.0,0.0001097,2]
[406591903,1771963842783,-166.66,0.00011068,2]
[406591904,1771963842793,-185.09,0.00011082,2]
[406591905,1771963842803,-3381.78832808,0.00011099,2]
[406591906,1771963842813,-166.66,0.00011178,2]
[406591907,1771963842823,-200.32,0.00011225,2]
[406591908,1771963842835,-2084.92,0.00011233,2]
[406591909,1771963842844,-166.66,0.00011288,2]
[406591910,1771963842853,-250.0,0.00011318,2]
[406591911,1771963842864,-324.71025761,0.00011386,2]
[406591912,1771963842876,-2500.0,0.00011386,2]
[406591913,1771963842888,-166.66,0.00011397,2]
[406591914,1771963842899,-1876.02400531,0.00011486,2]
[406591916,1771963846246,-2128.2296377,0.00011486,2]
[406591917,1771963885608,1459.56,6.256e-05,2]
[406591918,1771963886031,1459.56,6.476e-05,2]
[406591919,1771963886348,1459.56,6.695e-05,2]
[406591920,1771963886854,1459.56,6.915e-05,2]
[406591921,1771963890447,1459.56,7.135e-05,2]
[406591922,1771963892825,1459.56,7.354e-05,2]
[406591923,1771963893041,1242.65,7.574e-05,2]
[406591924,1771963893063,216.91,7.574e-05,2]
[406591925,1771963893256,1459.56,7.793e-05,2]
[406591926,1771963893664,1459.56,8.013e-05,2]
[406591927,1771963893884,1459.56,8.232e-05,2]
[406591928,1771963894104,1459.56,8.452e-05,2]
[406591929,1771963894306,1459.56,8.671e-05,2]
[406591930,1771963894507,1459.56,8.891e-05,2]
[406591931,1771964376989,217.81,9.1e-05,2]
[406591933,1771964598208,-6000000.0,0.00045559,30]
[406591934,1771964604946,-6000000.0,0.00045559,30]
[406591935,1771964629055,-5000000.0,0.00045559,30]
[406591936,1771964640972,-5000000.0,0.00045562,30]
[406591937,1771964644164,-5000000.0,0.00045562,30]
[406591938,1771964667255,1062.34374872,0.00010858,3]
[406591939,1771964674660,-5666667.11939523,0.00045562,30]
[406591940,1771964674709,-45007.19916521,0.00045562,30]
[406591941,1771964695277,1062.34374872,0.00010858,3]
[406591985,1771965003622,225.0,9.11e-05,2]
[406591994,1771965032084,-1459.56,9.11e-05,2]
[406591995,1771965032095,-1459.56,9.33e-05,2]
[406591996,1771965032106,-300.0,9.545e-05,2]
[406591997,1771965032119,-1200.0,9.545e-05,2]
[406591998,1771965032131,-3688.16091415,9.546e-05,2]
[406591999,1771965032142,-1459.56,9.549e-05,2]
[406592000,1771965032153,-3688.16091414,9.658e-05,2]
[406592001,1771965032163,-150.0,9.724e-05,2]
[406592002,1771965032174,-16185.2781206,9.725e-05,2]
[406592004,1771965032335,-13406.4849571,9.725e-05,2]
[406592005,1771965032348,-60525.8669223,9.725e-05,2]
[406592006,1771965032364,-1459.56,9.769e-05,2]
[406592007,1771965032375,-3688.16091414,9.769e-05,2]
[406592008,1771965032386,-1000.0,9.818e-05,2]
[406592009,1771965032397,-1459.56,9.988e-05,2]
[406592010,1771965032408,-151.0,0.0001,2]
[406592011,1771965032419,-151.0,0.0001,2]
[406592012,1771965032429,-151.0,0.0001,2]
[406592013,1771965032441,-151.0,0.0001,2]
[406592014,1771965032453,-151.0,0.0001,2]
[406592015,1771965032464,-151.0,0.0001,2]
[406592016,1771965032476,-151.0,0.0001,2]
[406592017,1771965032487,-151.0,0.0001,2]
[406592018,1771965032498,-151.0,0.0001,2]
[406592019,1771965032509,-151.0,0.0001,2]
[406592020,1771965032520,-151.0,0.0001,2]
[406592021,1771965032531,-151.0,0.0001,2]
[406592022,1771965032542,-151.0,0.0001,2]
[406592023,1771965032552,-151.0,0.0001,2]
[406592024,1771965032564,-275.2704529,0.0001,2]
[406592025,1771965032574,-999.99,0.00010103,2]
[406592026,1771965032585,-9999.99,0.00010103,2]
[406592027,1771965032596,-1459.56,0.00010208,2]
[406592028,1771965032607,-347.97,0.00010208,2]
[406592029,1771965032618,-150.99,0.00010208,2]
[406592030,1771965032628,-299.99,0.00010208,2]
[406592031,1771965032640,-9999.99,0.00010208,2]
[406592032,1771965032651,-720.0,0.00010208,2]
[406592033,1771965032661,-217.17,0.00010281,2]
[406592034,1771965032672,-200.0,0.00010427,2]
[406592035,1771965032692,-12648.46,0.00010427,2]
[406592036,1771965032706,-1459.56,0.00010428,2]
[406592037,1771965032718,-150.0,0.00010485,2]
[406592038,1771965032730,-500.0,0.00010485,2]
[406592039,1771965032741,-500.0,0.00010485,2]
[406592040,1771965032754,-500.0,0.00010485,2]
[406592041,1771965032766,-500.0,0.00010485,2]
[406592042,1771965032777,-150.0,0.00010485,2]
[406592043,1771965032790,-150.0,0.00010485,2]
[406592044,1771965032803,-150.0,0.00010485,2]
[406592045,1771965032814,-196.37,0.00010499,2]
[406592046,1771965032826,-420.0,0.000105,2]
[406592047,1771965032838,-500.0,0.000105,2]
[406592048,1771965032850,-518.19572335,0.0001054,2]
[406592049,1771965032862,-500.0,0.0001054,2]
[406592050,1771965032874,-500.0,0.0001054,2]
[406592051,1771965032885,-500.0,0.0001054,2]
[406592052,1771965032896,-150.0,0.0001054,2]
[406592053,1771965032908,-150.0,0.00010584,2]
[406592054,1771965032919,-500.0,0.00010584,2]
[406592055,1771965032930,-500.0,0.00010595,2]
[406592056,1771965032942,-500.0,0.00010595,2]
[406592057,1771965032953,-350.0,0.00010595,2]
[406592058,1771965032964,-212.55382438,0.00010595,2]
[406592059,1771965032976,-202.65175273,0.00010639,2]
[406592060,1771965032988,-500.0,0.00010639,2]
[406592061,1771965033000,-358.80251457,0.00010649,2]
[406592062,1771965033011,-586.85001945,0.00010649,2]
[406592063,1771965033022,-500.0,0.00010694,2]
[406592064,1771965033033,-150.0,0.00010697,2]
[406592065,1771965033050,-479.85632369,0.000107,2]
[406592066,1771965033062,-809.71264741,0.000107,2]
[406592067,1771965033075,-1073.59770634,0.000107,2]
[406592068,1771965033088,-1931.22414795,0.000107,2]
[406592069,1771965033371,-160.26,0.00010729,2]
[406592070,1771965033394,-166.68,0.0001074,2]
[406592071,1771965033405,-165.886,0.00010745,2]
[406592072,1771965033415,-1934.985,0.00010745,2]
[406592073,1771965033424,-500.0,0.00010748,2]
[406592074,1771965033434,-8036.3575399,0.00010751,2]
[406592075,1771965033444,-2500.0,0.00010759,2]
[406592076,1771965033454,-1014.45566591,0.00010759,2]
[406592077,1771965033463,-1222.56266282,0.000108,2]
[406592078,1771965033473,-235.93962498,0.000108,2]
[406592079,1771965033483,-8692.42913998,0.000108,2]
[406592080,1771965033493,-500.0,0.00010803,2]
[406592081,1771965033503,-1056.79133189,0.00010813,2]
[406592082,1771965033513,-1346.14790075,0.00010813,2]
[406592083,1771965033523,-4107.97515478,0.00010848,2]
[406592084,1771965033533,-151.0,0.00010856,2]
[406592085,1771965033543,-151.0,0.00010856,2]
[406592086,1771965033557,-500.0,0.00010858,2]
[406592087,1771965033568,-869.38,0.00010858,2]
[406592088,1771965033580,-482.31763471,0.000109,2]
[406592089,1771965033589,-570.07503716,0.00010913,2]
[406592090,1771965033599,-150.0,0.00010959,2]
[406592091,1771965033608,-1000.0,0.00011045,2]
[406592092,1771965033618,-151.0,0.00011046,2]
[406592093,1771965033628,-156.587,0.00011046,2]
[406592094,1771965033638,-162.380719,0.00011046,2]
[406592095,1771965033647,-159.89501112,0.00011046,2]
[406592096,1771965033656,-151.0,0.00011046,2]
[406592097,1771965033666,-30114.68585901,0.00011099,2]
[406592098,1771965033675,-3326.49124428,0.00011099,2]
[406592099,1771965033685,-150.0,0.00011111,2]
[406592100,1771965033695,-150.0,0.00011111,2]
[406592101,1771965033705,-500.0,0.00011111,2]
[406592102,1771965033714,-150.0,0.00011111,2]
[406592103,1771965033724,-2705.0,0.00011111,2]
[406592104,1771965033734,-500.0,0.00011111,2]
[406592105,1771965033743,-869.38,0.00011132,2]
[406592106,1771965033756,-150.0,0.00011166,2]
[406592107,1771965033766,-500.0,0.00011166,2]
[406592108,1771965033776,-178.51167837,0.00011166,2]
[406592109,1771965033785,-2705.0,0.00011166,2]
[406592110,1771965033795,-500.0,0.00011166,2]
[406592111,1771965033804,-150.0,0.00011221,2]
[406592112,1771965033814,-500.0,0.00011221,2]
[406592113,1771965033823,-2705.0,0.00011221,2]
[406592114,1771965033835,-500.0,0.00011221,2]
[406592115,1771965033845,-30114.68585897,0.0001125,2]
[406592116,1771965033855,-3326.49124427,0.0001125,2]
[406592117,1771965033864,-277.65171186,0.00011275,2]
[406592118,1771965033875,-229.75939296,0.00011275,2]
[406592119,1771965033885,-2705.0,0.00011275,2]
[406592120,1771965033894,-500.0,0.00011275,2]
[406592121,1771965033904,-150.94744421,0.00011285,2]
[406592122,1771965033913,-150.0,0.00011285,2]
[406592123,1771965033923,-150.0,0.00011285,2]
[406592124,1771965033933,-150.0,0.00011285,2]
[406592125,1771965033943,-150.0,0.00011285,2]
[406592126,1771965033952,-150.0,0.00011285,2]
[406592127,1771965033965,-2705.0,0.0001133,2]
[406592128,1771965033975,-500.0,0.0001133,2]
[406592129,1771965033984,-150.0,0.0001134,2]
[406592130,1771965033995,-451.75432,0.0001138,2]
[406592131,1771965034005,-451.75433,0.0001138,2]
[406592132,1771965034015,-2705.0,0.00011385,2]
[406592133,1771965034025,-648.05114672,0.00011385,2]
[406592134,1771965034035,-155.0,0.00011385,2]
[406592135,1771965034050,-151.0,0.00011386,2]
[406592136,1771965034060,-151.0,0.00011386,2]
[406592137,1771965034071,-1000.0,0.00011386,2]
[406592138,1771965034082,-263725.4691,0.00011386,2]
[406592139,1771965034093,-451.75433,0.0001139,2]
[406592140,1771965034103,-200.0,0.00011395,2]
[406592141,1771965034114,-869.38,0.00011406,2]
[406592142,1771965034123,-451.75433,0.0001142,2]
[406592143,1771965034133,-2705.0,0.0001144,2]
[406592144,1771965034143,-151.0,0.00011486,2]
[406592145,1771965034152,-151.0,0.00011486,2]
[406592146,1771965034162,-151.0,0.00011486,2]
[406592147,1771965034172,-151.0,0.00011486,2]
[406592148,1771965034181,-151.0,0.00011486,2]
[406592149,1771965034191,-151.0,0.00011486,2]
[406592150,1771965034201,-151.0,0.00011486,2]
[406592151,1771965034211,-68.41747094,0.00011486,2]
[406592152,1771965034296,-500.0,0.00010774,2]
[406592153,1771965034306,-82.58252906,0.00011486,2]
[406592154,1771965034316,-2705.0,0.00011495,2]
[406592155,1771965034327,-451.75433,0.00011495,2]
[406592156,1771965034337,-451.75433,0.00011495,2]
[406592157,1771965034347,-192.68369648,0.00011495,2]
[406592163,1771965039858,-500.0,0.00011048,2]
[406592164,1771965039869,-500.0,0.00011322,2]
[406592165,1771965039888,-807.31630352,0.00011495,2]
[406592166,1771965039898,-1000.0,0.00011495,2]
[406592167,1771965039908,-1000.0,0.00011495,2]
[406592168,1771965039918,-1000.0,0.00011495,2]
[406592169,1771965039928,-1000.0,0.00011495,2]
[406592170,1771965039938,-1000.0,0.00011495,2]
[406592171,1771965039948,-937.95368336,0.00011495,2]
[406592172,1771965039957,-166.66,0.00011507,2]
[406592173,1771965039967,-166.66,0.00011531,2]
[406592174,1771965039977,-443.0,0.00011549,2]
[406592175,1771965039986,-2705.0,0.00011549,2]
[406592176,1771965039995,-5478.0,0.00011559,2]
[406592177,1771965040005,-151.0,0.00011594,2]
[406592178,1771965040015,-500.0,0.00011596,2]
[406592179,1771965040024,-2705.0,0.00011604,2]
[406592180,1771965040034,-185.09,0.00011636,2]
[406592181,1771965040044,-2705.0,0.00011659,2]
[406592182,1771965040057,-869.38,0.0001168,2]
[406592183,1771965040066,-2705.0,0.00011714,2]
[406592184,1771965040075,-580.68,0.00011731,2]
[406592185,1771965040087,-30114.68585897,0.00011741,2]
[406592186,1771965040097,-3326.49124427,0.00011741,2]
[406592187,1771965040107,-151.0,0.00011744,2]
[406592188,1771965040119,-151.0,0.00011744,2]
[406592189,1771965040128,-151.0,0.00011744,2]
[406592190,1771965040139,-2705.0,0.00011769,2]
[406592191,1771965040149,-2705.0,0.00011823,2]
[406592192,1771965040161,-482.31763468,0.00011825,2]
[406592193,1771965040171,-500.0,0.0001187,2]
[406592194,1771965040180,-2705.0,0.00011878,2]
[406592195,1771965040190,-166.66,0.00011888,2]
[406592196,1771965040199,-2705.0,0.00011933,2]
[406592197,1771965040209,-869.38,0.00011954,2]
[406592198,1771965040219,-151.0,0.00011955,2]
[406592199,1771965040228,-151.0,0.00011955,2]
[406592200,1771965040237,-151.0,0.00011964,2]
[406592201,1771965040247,-151.0,0.00011964,2]
[406592202,1771965040261,-151.58,0.00011974,2]
[406592203,1771965040272,-2705.0,0.00011988,2]
[406592204,1771965040281,-250.0,0.00012038,2]
[406592205,1771965040291,-2705.0,0.00012043,2]
[406592206,1771965040300,-33116.36,0.00012055,2]
[406592207,1771965040309,-2705.0,0.00012097,2]
[406592208,1771965040319,-151.0,0.00012142,2]
[406592209,1771965040329,-500.0,0.00012144,2]
[406592210,1771965040342,-2705.0,0.00012152,2]
[406592211,1771965040352,-185.09,0.0001219,2]
[406592212,1771965040362,-151.0,0.00012202,2]
[406592213,1771965040371,-192.41511,0.00012202,2]
[406592214,1771965040381,-151.0,0.00012202,2]
[406592215,1771965040391,-2705.0,0.00012207,2]
[406592217,1771965040400,-869.38,0.00012228,2]
[406592218,1771965040410,-5294.9001652,0.00012232,2]
[406592219,1771965040471,-495.59278818,0.00012232,2]
[406592451,1771966022688,-1500.0,0.00045559,30]
[406592452,1771966022742,-1500.0,0.00045559,30]
[406592453,1771966022796,-3000.0,0.00045559,30]
[406592454,1771966022846,-3000.0,0.00045559,30]
[406592455,1771966022896,-500.0,0.00045559,120]
[406592456,1771966022946,-500.0,0.00045559,120]
[406592457,1771966022995,-633.60200246,0.00045559,120]
[406592458,1771966023049,-502.02032608,0.00045559,30]
[406592459,1771966023101,-240.0,0.00045559,30]
[406592460,1771966023156,-1036.99108694,0.00045559,120]
[406592461,1771966023209,-1036.99108694,0.00045559,120]
[406592462,1771966023261,-1036.99108694,0.00045559,120]
[406592463,1771966023312,-1036.99108694,0.00045559,120]
[406592464,1771966023363,-1036.99108694,0.00045559,120]
[406592465,1771966023417,-1036.99108694,0.00045559,120]
[406592466,1771966023466,-1036.99108694,0.00045559,120]
[406592467,1771966023517,-1036.99108694,0.00045559,120]
[406592468,1771966023570,-1036.99108694,0.00045559,120]
[406592469,1771966023625,-1036.99108694,0.00045559,120]
[406592470,1771966023675,-1036.99108694,0.00045559,120]
[406592471,1771966023732,-1036.99108694,0.00045559,120]
[406592472,1771966023788,-1036.99108694,0.00045559,120]
[406592473,1771966023842,-1036.99108694,0.00045559,120]
[406592474,1771966023895,-1036.99108694,0.00045559,120]
[406592475,1771966023946,-1036.99108694,0.00045559,120]
[406592476,1771966024011,-1036.99108694,0.00045559,120]
[406592477,1771966024066,-1036.99108694,0.00045559,120]
[406592478,1771966024120,-1036.99108694,0.00045559,120]
[406592479,1771966024175,-1036.99108694,0.00045559,120]
[406592480,1771966024229,-1036.99108694,0.00045559,120]
[406592481,1771966024286,-1036.99108694,0.00045559,120]
[406592482,1771966024338,-1036.99108694,0.00045559,120]
[406592483,1771966024394,-1036.99108694,0.00045559,120]
[406592484,1771966024446,-1036.99108694,0.00045559,120]
[406592485,1771966024500,-1036.99108694,0.00045559,120]
[406592486,1771966024553,-1036.99108694,0.00045559,120]
[406592487,1771966024606,-1036.99108694,0.00045559,120]
[406592488,1771966024658,-1036.99108694,0.00045559,120]
[406592489,1771966024720,-467.65,0.00045559,30]
[406592490,1771966024778,-3000.0,0.00045559,120]
[406592491,1771966024832,-156.25018477,0.00045559,30]
[406592492,1771966024885,-4204.90931,0.00045559,120]
[406592493,1771966024942,-495.98525342,0.00045559,120]
[406592494,1771966025001,-1589.40236675,0.00045559,120]
[406592495,1771966025056,-1768.11810113,0.00045559,30]
[406592496,1771966025110,-293.04870968,0.00045559,30]
[406592497,1771966025162,-167.26499161,0.00045559,30]
[406592498,1771966025213,-176.19139061,0.00045559,120]
[406592499,1771966025265,-750.10006921,0.00045559,120]
[406592500,1771966025317,-939.23713548,0.00045559,47]
[406592501,1771966025369,-241.0858573,0.00045559,30]
[406592502,1771966025423,-183.61679316,0.00045559,30]
[406592503,1771966025472,-321.81300984,0.00045559,120]
[406592504,1771966025521,-550.76854801,0.00045559,30]
[406592505,1771966025573,-225.25939609,0.00045559,120]
[406592506,1771966025628,-3193.87892642,0.00045559,120]
[406592507,1771966025680,-362.37867549,0.00045559,30]
[406592508,1771966025731,-1078.5596011,0.00045559,30]
[406592509,1771966025784,-506.0277496,0.00045559,120]
[406592510,1771966025836,-486.49720737,0.00045559,30]
[406592511,1771966025886,-500.25,0.00045559,30]
[406592512,1771966025938,-280.00847901,0.00045559,60]
[406592513,1771966025987,-1000.0,0.00045559,30]
[406592514,1771966026041,-172.83184782,0.00045559,120]
[406592515,1771966026099,-172.83184782,0.00045559,120]
[406592516,1771966026302,-172.83184782,0.00045559,120]
[406592517,1771966026354,-172.83184782,0.00045559,120]
[406592518,1771966026408,-172.83184782,0.00045559,120]
[406592519,1771966026458,-172.83184782,0.00045559,120]
[406592520,1771966026507,-179.76340394,0.00045559,30]
[406592521,1771966026558,-481.76243495,0.00045559,30]